[Event "Late-Titled-Tuesday-Blitz-May-07-2024"]
[Site "Chess.com"]
[Date "2024.05.07"]
[Round "3"]
[White "frequentblunders"]
[Black "Sandstad"]
[Result "0-1"]
[WhiteElo "2197"]
[BlackElo "2438"]
[TimeControl "180+1"]
[EndTime "14:26:37 PDT"]
[Termination "Sandstad won by resignation"]

1. d3 {[%clk 0:03:00.6]} 1... Nf6 {[%clk 0:02:57.5]} 2. f4 {[%clk 0:03:01.5]}
2... d5 {[%clk 0:02:55.8]} 3. Nd2 {[%clk 0:03:00.7]} 3... c5 {[%clk 0:02:53.1]}
4. Ngf3 {[%clk 0:03:01.6]} 4... Nc6 {[%clk 0:02:52.9]} 5. e4 {[%clk 0:03:01.6]}
5... Bg4 {[%clk 0:02:48.5]} 6. Be2 {[%clk 0:03:00.4]} 6... e6 {[%clk 0:02:47.5]}
7. O-O {[%clk 0:02:59.8]} 7... Bxf3 {[%clk 0:02:41.3]} 8. Bxf3 {[%clk
0:03:00.7]} 8... Nd4 {[%clk 0:02:40.4]} 9. c3 {[%clk 0:02:56.3]} 9... Nxf3+
{[%clk 0:02:39.8]} 10. Qxf3 {[%clk 0:02:57.2]} 10... Be7 {[%clk 0:02:34.4]} 11.
e5 {[%clk 0:02:56]} 11... Nd7 {[%clk 0:02:30.5]} 12. a3 {[%clk 0:02:56.1]} 12...
b5 {[%clk 0:02:30.5]} 13. d4 {[%clk 0:02:55.6]} 13... Qb6 {[%clk 0:02:29.4]} 14.
Nb3 {[%clk 0:02:50]} 14... a5 {[%clk 0:02:22.5]} 15. Be3 {[%clk 0:02:49.2]}
15... a4 {[%clk 0:01:45.3]} 16. Nxc5 {[%clk 0:02:48.3]} 16... Nxc5 {[%clk
0:01:46.2]} 17. dxc5 {[%clk 0:02:48.8]} 17... Bxc5 {[%clk 0:01:45.9]} 18. Bxc5
{[%clk 0:02:49.1]} 18... Qxc5+ {[%clk 0:01:46.8]} 19. Qf2 {[%clk 0:02:49.3]}
19... Rc8 {[%clk 0:01:44.6]} 20. Qxc5 {[%clk 0:02:46.7]} 20... Rxc5 {[%clk
0:01:45.5]} 21. Rad1 {[%clk 0:02:46.4]} 21... Rc4 {[%clk 0:01:41.9]} 22. Kf2
{[%clk 0:02:46]} 22... Rxf4+ {[%clk 0:01:39.9]} 23. Kg3 {[%clk 0:02:44.1]} 23...
Rxf1 {[%clk 0:01:38]} 24. Rxf1 {[%clk 0:02:43.9]} 24... Ke7 {[%clk 0:01:38.5]}
25. Rf4 {[%clk 0:02:42.1]} 25... Rc8 {[%clk 0:01:37.9]} 26. Rb4 {[%clk
0:02:41.4]} 26... Rc5 {[%clk 0:01:37.7]} 27. h4 {[%clk 0:02:35.7]} 27... f6
{[%clk 0:01:33]} 28. exf6+ {[%clk 0:02:36.6]} 28... gxf6 {[%clk 0:01:30.8]} 29.
Kf3 {[%clk 0:02:36.8]} 29... e5 {[%clk 0:01:28.7]} 30. g4 {[%clk 0:02:36.8]}
30... Kd6 {[%clk 0:01:25.4]} 31. g5 {[%clk 0:02:33.7]} 31... f5 {[%clk
0:01:24.9]} 32. h5 {[%clk 0:02:34.4]} 32... Ke6 {[%clk 0:01:24.4]} 33. Kg3
{[%clk 0:02:31.1]} 33... Kf7 {[%clk 0:01:15]} 34. Kf3 {[%clk 0:02:30.6]} 34...
Kg7 {[%clk 0:01:14.9]} 35. Kg3 {[%clk 0:02:30.4]} 35... h6 {[%clk 0:01:14.4]}
36. g6 {[%clk 0:02:26.8]} 36... Kf6 {[%clk 0:01:14.4]} 37. Rh4 {[%clk
0:02:23.2]} 37... Rc4 {[%clk 0:01:07]} 38. Rxc4 {[%clk 0:02:16.7]} 38... bxc4
{[%clk 0:01:05]} 39. Kf3 {[%clk 0:02:16.2]} 39... d4 {[%clk 0:01:01.4]} 40. cxd4
{[%clk 0:02:07.8]} 40... exd4 {[%clk 0:01:02.3]} 41. Ke2 {[%clk 0:02:07.4]}
41... f4 {[%clk 0:00:53]} 42. Kf3 {[%clk 0:02:05.6]} 42... c3 {[%clk 0:00:53.2]}
43. bxc3 {[%clk 0:02:05.1]} 43... dxc3 {[%clk 0:00:54.1]} 44. Ke2 {[%clk
0:02:04.2]} 44... Kg7 {[%clk 0:00:42.7]} 45. Kd3 {[%clk 0:02:03.8]} 45... f3
{[%clk 0:00:42.7]} 46. Kxc3 {[%clk 0:02:00.3]} 46... f2 {[%clk 0:00:42.8]} 47.
Kb4 {[%clk 0:02:01.2]} 47... f1=Q {[%clk 0:00:43.1]} 48. Kxa4 {[%clk 0:02:02.1]}
48... Qd1+ {[%clk 0:00:41.7]} 49. Kb5 {[%clk 0:02:02]} 49... Qxh5+ {[%clk
0:00:42.2]} 50. Kb4 {[%clk 0:02:01]} 50... Qxg6 {[%clk 0:00:42.7]} 51. a4 {[%clk
0:02:01.9]} 51... h5 {[%clk 0:00:43]} 52. a5 {[%clk 0:02:02.6]} 52... Qa6 {[%clk
0:00:42.9]} 0-1

[Event "Late-Titled-Tuesday-Blitz-May-07-2024"]
[Site "Chess.com"]
[Date "2024.05.07"]
[Round "3"]
[White "Naoki"]
[Black "Hirna2005"]
[Result "1-0"]
[WhiteElo "2586"]
[BlackElo "2330"]
[TimeControl "180+1"]
[EndTime "14:26:43 PDT"]
[Termination "Naoki won by resignation"]

1. d4 {[%clk 0:02:58.3]} 1... g6 {[%clk 0:03:00.5]} 2. Nc3 {[%clk 0:02:56.1]}
2... Bg7 {[%clk 0:03:01]} 3. Bf4 {[%clk 0:02:56.2]} 3... d6 {[%clk 0:03:01.5]}
4. e4 {[%clk 0:02:55.4]} 4... a6 {[%clk 0:03:00.8]} 5. a4 {[%clk 0:02:55.3]}
5... Nc6 {[%clk 0:03:00.5]} 6. d5 {[%clk 0:02:43.1]} 6... Nb8 {[%clk 0:02:51.3]}
7. h4 {[%clk 0:02:40.1]} 7... Nf6 {[%clk 0:02:50.7]} 8. Be2 {[%clk 0:02:39.3]}
8... h5 {[%clk 0:02:49.8]} 9. f3 {[%clk 0:02:39]} 9... Nbd7 {[%clk 0:02:47.9]}
10. Nh3 {[%clk 0:02:38.9]} 10... Nc5 {[%clk 0:02:45.3]} 11. Nf2 {[%clk
0:02:38.4]} 11... a5 {[%clk 0:02:29.7]} 12. Qd2 {[%clk 0:02:33.1]} 12... Bd7
{[%clk 0:02:27.1]} 13. g4 {[%clk 0:02:16.4]} 13... hxg4 {[%clk 0:02:18.2]} 14.
fxg4 {[%clk 0:02:16.7]} 14... c6 {[%clk 0:02:12.6]} 15. h5 {[%clk 0:02:05.6]}
15... Qb6 {[%clk 0:01:56.3]} 16. h6 {[%clk 0:01:52.9]} 16... Bf8 {[%clk
0:01:53.3]} 17. g5 {[%clk 0:01:34.6]} 17... Nh5 {[%clk 0:01:29.9]} 18. Bxh5
{[%clk 0:01:27.7]} 18... gxh5 {[%clk 0:01:29.4]} 19. O-O-O {[%clk 0:01:26.8]}
19... cxd5 {[%clk 0:01:17.1]} 20. Nxd5 {[%clk 0:01:26.2]} 20... Qd8 {[%clk
0:01:09.6]} 21. Bxd6 {[%clk 0:00:57.5]} 21... Rc8 {[%clk 0:00:52]} 22. Bxc5
{[%clk 0:00:47.9]} 22... Rxc5 {[%clk 0:00:51.5]} 23. Qd4 {[%clk 0:00:48.5]}
23... e5 {[%clk 0:00:46.5]} 24. Qxe5+ {[%clk 0:00:47]} 24... Be6 {[%clk
0:00:46.7]} 25. Nf6+ {[%clk 0:00:46.8]} 25... Qxf6 {[%clk 0:00:42]} 26. Qxf6
{[%clk 0:00:45.4]} 1-0

[Event "Late-Titled-Tuesday-Blitz-May-07-2024"]
[Site "Chess.com"]
[Date "2024.05.07"]
[Round "3"]
[White "GM_dmitrij"]
[Black "SchmakAttack"]
[Result "1-0"]
[WhiteElo "3046"]
[BlackElo "2775"]
[TimeControl "180+1"]
[EndTime "14:26:55 PDT"]
[Termination "GM_dmitrij won by resignation"]

1. d4 {[%clk 0:02:48.2]} 1... Nf6 {[%clk 0:02:59.7]} 2. c4 {[%clk 0:02:46.7]}
2... e6 {[%clk 0:02:57.1]} 3. Nf3 {[%clk 0:02:46.6]} 3... d5 {[%clk 0:02:54.3]}
4. g3 {[%clk 0:02:46.9]} 4... Be7 {[%clk 0:02:52.4]} 5. Bg2 {[%clk 0:02:46.9]}
5... O-O {[%clk 0:02:53.1]} 6. Nc3 {[%clk 0:02:47.3]} 6... c6 {[%clk 0:02:51.5]}
7. Qd3 {[%clk 0:02:42.6]} 7... b6 {[%clk 0:02:28.4]} 8. b3 {[%clk 0:02:38.2]}
8... Ba6 {[%clk 0:02:23.5]} 9. O-O {[%clk 0:02:29.7]} 9... c5 {[%clk 0:02:12.2]}
10. Ne5 {[%clk 0:02:10.9]} 10... Nfd7 {[%clk 0:01:57.3]} 11. Rd1 {[%clk
0:01:58.8]} 11... cxd4 {[%clk 0:01:51.5]} 12. Nxd7 {[%clk 0:01:57.3]} 12... Nxd7
{[%clk 0:01:47.8]} 13. Qxd4 {[%clk 0:01:57.4]} 13... Rc8 {[%clk 0:01:43.3]} 14.
Bb2 {[%clk 0:01:53.7]} 14... Bf6 {[%clk 0:01:10.1]} 15. Qd2 {[%clk 0:01:53.8]}
15... d4 {[%clk 0:00:35.6]} 16. Ne4 {[%clk 0:01:49.2]} 16... e5 {[%clk
0:00:36.1]} 17. e3 {[%clk 0:01:45.3]} 17... Nc5 {[%clk 0:00:25.7]} 18. Nxf6+
{[%clk 0:01:40.7]} 18... Qxf6 {[%clk 0:00:26.6]} 19. exd4 {[%clk 0:01:41.4]}
19... exd4 {[%clk 0:00:26.6]} 20. Bxd4 {[%clk 0:01:40.8]} 20... Qg6 {[%clk
0:00:27.2]} 21. Bxc5 {[%clk 0:01:32.9]} 21... Rxc5 {[%clk 0:00:24.3]} 22. Qd7
{[%clk 0:01:33.4]} 22... Bc8 {[%clk 0:00:16.1]} 23. Qxa7 {[%clk 0:01:33]} 23...
h5 {[%clk 0:00:16.2]} 24. Qe7 {[%clk 0:01:29.2]} 24... h4 {[%clk 0:00:06.3]} 25.
Be4 {[%clk 0:01:19.3]} 25... Qh5 {[%clk 0:00:03.2]} 26. Rd8 {[%clk 0:01:13.3]}
1-0

[Event "Late-Titled-Tuesday-Blitz-May-07-2024"]
[Site "Chess.com"]
[Date "2024.05.07"]
[Round "3"]
[White "Nechitaylo_Nikita"]
[Black "Vazabanga"]
[Result "0-1"]
[WhiteElo "2343"]
[BlackElo "2683"]
[TimeControl "180+1"]
[EndTime "14:27:03 PDT"]
[Termination "Vazabanga won on time"]

1. d4 {[%clk 0:03:00.9]} 1... Nf6 {[%clk 0:02:53.9]} 2. c4 {[%clk 0:03:01]} 2...
e6 {[%clk 0:02:52.7]} 3. Nc3 {[%clk 0:02:59.7]} 3... Bb4 {[%clk 0:02:52.2]} 4.
e3 {[%clk 0:02:59.9]} 4... O-O {[%clk 0:02:51.1]} 5. Bd2 {[%clk 0:03:00.4]} 5...
d5 {[%clk 0:02:47.8]} 6. Rc1 {[%clk 0:02:58.1]} 6... Nbd7 {[%clk 0:02:43.8]} 7.
Nf3 {[%clk 0:02:54.4]} 7... c6 {[%clk 0:02:37.8]} 8. Bd3 {[%clk 0:02:46.7]} 8...
Bd6 {[%clk 0:02:23.9]} 9. O-O {[%clk 0:02:42]} 9... Re8 {[%clk 0:02:23.3]} 10.
Qc2 {[%clk 0:01:34.9]} 10... dxc4 {[%clk 0:02:20]} 11. Bxc4 {[%clk 0:01:32.7]}
11... e5 {[%clk 0:02:20.4]} 12. Qb3 {[%clk 0:00:46.1]} 12... Qe7 {[%clk
0:02:16.6]} 13. Ng5 {[%clk 0:00:40.5]} 13... Rf8 {[%clk 0:02:16.3]} 14. Nce4
{[%clk 0:00:35.3]} 14... Nxe4 {[%clk 0:01:48.8]} 15. Nxe4 {[%clk 0:00:36.2]}
15... exd4 {[%clk 0:01:48.1]} 16. Nxd6 {[%clk 0:00:22.5]} 16... Qxd6 {[%clk
0:01:49]} 17. exd4 {[%clk 0:00:15.6]} 17... Qxd4 {[%clk 0:01:48.4]} 18. Bb4
{[%clk 0:00:13.2]} 18... c5 {[%clk 0:01:45.6]} 19. Rcd1 {[%clk 0:00:13.6]} 19...
Qg4 {[%clk 0:01:27.9]} 20. Bc3 {[%clk 0:00:04.4]} 20... Qg6 {[%clk 0:01:23.3]}
21. g3 {[%clk 0:00:01.5]} 21... Nb6 {[%clk 0:01:20.5]} 22. Bd3 {[%clk 0:00:02]}
22... Bf5 {[%clk 0:01:19.3]} 23. Qb5 {[%clk 0:00:01.1]} 23... a6 {[%clk
0:01:06.1]} 24. Qb3 {[%clk 0:00:00.7]} 24... Bxd3 {[%clk 0:01:05.3]} 0-1

[Event "Late-Titled-Tuesday-Blitz-May-07-2024"]
[Site "Chess.com"]
[Date "2024.05.07"]
[Round "3"]
[White "HipsterChess22"]
[Black "dealshark"]
[Result "0-1"]
[WhiteElo "2227"]
[BlackElo "2557"]
[TimeControl "180+1"]
[EndTime "14:27:07 PDT"]
[Termination "dealshark won on time"]

1. d4 {[%clk 0:03:00]} 1... d5 {[%clk 0:03:00.2]} 2. Nc3 {[%clk 0:02:59.5]} 2...
e6 {[%clk 0:02:56.9]} 3. e4 {[%clk 0:02:58.6]} 3... dxe4 {[%clk 0:02:53.6]} 4.
Nxe4 {[%clk 0:02:57.8]} 4... Bd7 {[%clk 0:02:54]} 5. Nf3 {[%clk 0:02:51.8]} 5...
Bc6 {[%clk 0:02:54]} 6. Bd3 {[%clk 0:02:50.6]} 6... Nd7 {[%clk 0:02:53.7]} 7.
O-O {[%clk 0:02:45.7]} 7... Ngf6 {[%clk 0:02:53.8]} 8. Ng3 {[%clk 0:02:42.8]}
8... Be7 {[%clk 0:02:52.1]} 9. c3 {[%clk 0:02:40.9]} 9... O-O {[%clk 0:02:52.3]}
10. Re1 {[%clk 0:02:39.7]} 10... b6 {[%clk 0:02:48.2]} 11. Qe2 {[%clk 0:02:36]}
11... Bb7 {[%clk 0:02:46.3]} 12. Bg5 {[%clk 0:02:30.4]} 12... c5 {[%clk
0:02:43.7]} 13. Rad1 {[%clk 0:02:27.3]} 13... Qc7 {[%clk 0:02:42.6]} 14. Bb1
{[%clk 0:02:24.6]} 14... Rad8 {[%clk 0:02:37.9]} 15. Rd2 {[%clk 0:01:56.5]}
15... Rfe8 {[%clk 0:02:32.9]} 16. Red1 {[%clk 0:01:55.7]} 16... cxd4 {[%clk
0:02:08.2]} 17. Nxd4 {[%clk 0:01:53.8]} 17... Nc5 {[%clk 0:02:05.9]} 18. Nh5
{[%clk 0:01:16.3]} 18... Nxh5 {[%clk 0:01:56.2]} 19. Qxh5 {[%clk 0:01:15.6]}
19... g6 {[%clk 0:01:55.9]} 20. Qh4 {[%clk 0:01:10.3]} 20... Bxg5 {[%clk
0:01:53.2]} 21. Qxg5 {[%clk 0:01:11.2]} 21... Rd5 {[%clk 0:01:32]} 22. Qg3
{[%clk 0:00:50.5]} 22... Qxg3 {[%clk 0:01:24.7]} 23. hxg3 {[%clk 0:00:51.4]}
23... Red8 {[%clk 0:01:22.7]} 24. Nf3 {[%clk 0:00:49.3]} 24... Na4 {[%clk
0:01:14.2]} 25. Rxd5 {[%clk 0:00:09.7]} 25... Rxd5 {[%clk 0:01:15.1]} 26. Rxd5
{[%clk 0:00:08.8]} 26... Bxd5 {[%clk 0:01:14.5]} 27. Nd2 {[%clk 0:00:02.6]}
27... Nxb2 {[%clk 0:01:14.5]} 28. f3 {[%clk 0:00:01.2]} 28... Kf8 {[%clk
0:01:13.1]} 0-1

[Event "Late-Titled-Tuesday-Blitz-May-07-2024"]
[Site "Chess.com"]
[Date "2024.05.07"]
[Round "3"]
[White "Szparu"]
[Black "ChessicallyInclined"]
[Result "1-0"]
[WhiteElo "2931"]
[BlackElo "2729"]
[TimeControl "180+1"]
[EndTime "14:27:09 PDT"]
[Termination "Szparu won by resignation"]

1. e4 {[%clk 0:03:00.9]} 1... e5 {[%clk 0:02:58.5]} 2. Nf3 {[%clk 0:03:00.5]}
2... Nc6 {[%clk 0:02:58.7]} 3. d4 {[%clk 0:03:00.1]} 3... exd4 {[%clk
0:02:58.8]} 4. Nxd4 {[%clk 0:03:01]} 4... Nf6 {[%clk 0:02:59]} 5. Nxc6 {[%clk
0:03:00.2]} 5... bxc6 {[%clk 0:02:59.9]} 6. Bd3 {[%clk 0:03:00.6]} 6... Bc5
{[%clk 0:02:59.4]} 7. e5 {[%clk 0:02:52.2]} 7... Nd5 {[%clk 0:02:57.9]} 8. Qg4
{[%clk 0:02:47.7]} 8... g6 {[%clk 0:02:45]} 9. O-O {[%clk 0:02:41.5]} 9... O-O
{[%clk 0:02:34.8]} 10. Qg3 {[%clk 0:02:33.4]} 10... d6 {[%clk 0:02:24.2]} 11.
Bg5 {[%clk 0:02:18.2]} 11... Qd7 {[%clk 0:02:24]} 12. exd6 {[%clk 0:02:02.4]}
12... cxd6 {[%clk 0:02:18.5]} 13. Nd2 {[%clk 0:02:01.1]} 13... Bd4 {[%clk
0:02:14.5]} 14. Nc4 {[%clk 0:01:53.3]} 14... Bg7 {[%clk 0:01:46.2]} 15. c3
{[%clk 0:01:50.8]} 15... f6 {[%clk 0:01:44.6]} 16. Bd2 {[%clk 0:01:45.5]} 16...
Rd8 {[%clk 0:01:44.5]} 17. Rad1 {[%clk 0:01:44.7]} 17... Nb6 {[%clk 0:01:42.5]}
18. Na5 {[%clk 0:01:26.8]} 18... d5 {[%clk 0:01:29.8]} 19. c4 {[%clk 0:01:26.2]}
19... Ba6 {[%clk 0:01:22.6]} 20. Bc3 {[%clk 0:01:14.1]} 20... Qc8 {[%clk
0:01:11.9]} 21. b3 {[%clk 0:01:07.8]} 21... dxc4 {[%clk 0:01:11.5]} 22. bxc4
{[%clk 0:01:06.9]} 22... Nd7 {[%clk 0:00:59.7]} 23. Be4 {[%clk 0:01:02.1]} 23...
Bb7 {[%clk 0:00:43.3]} 24. Nxb7 {[%clk 0:00:52.4]} 24... Qxb7 {[%clk 0:00:43]}
25. Qd6 {[%clk 0:00:42.4]} 25... Rac8 {[%clk 0:00:38.3]} 26. Rfe1 {[%clk
0:00:37]} 26... Qa6 {[%clk 0:00:29.3]} 27. Qe6+ {[%clk 0:00:36.2]} 27... Kh8
{[%clk 0:00:27.7]} 28. Rxd7 {[%clk 0:00:35.7]} 1-0

[Event "Late-Titled-Tuesday-Blitz-May-07-2024"]
[Site "Chess.com"]
[Date "2024.05.07"]
[Round "3"]
[White "TheDevilAdvisoR"]
[Black "Oleg_Papayan"]
[Result "1-0"]
[WhiteElo "2484"]
[BlackElo "2644"]
[TimeControl "180+1"]
[EndTime "14:27:10 PDT"]
[Termination "TheDevilAdvisoR won by checkmate"]

1. Nf3 {[%clk 0:02:59]} 1... Nf6 {[%clk 0:02:58.4]} 2. g3 {[%clk 0:02:58.5]}
2... c5 {[%clk 0:02:58.5]} 3. Bg2 {[%clk 0:02:58.8]} 3... Nc6 {[%clk 0:02:59.2]}
4. O-O {[%clk 0:02:59.2]} 4... e5 {[%clk 0:02:59.9]} 5. d3 {[%clk 0:02:59.5]}
5... d5 {[%clk 0:03:00.6]} 6. c4 {[%clk 0:02:58.9]} 6... d4 {[%clk 0:03:00.8]}
7. e3 {[%clk 0:02:58.9]} 7... Be7 {[%clk 0:02:59.5]} 8. exd4 {[%clk 0:02:58.9]}
8... exd4 {[%clk 0:02:59.5]} 9. Re1 {[%clk 0:02:58.8]} 9... O-O {[%clk
0:02:59.3]} 10. Bf4 {[%clk 0:02:59.2]} 10... Bf5 {[%clk 0:02:58.6]} 11. Ne5
{[%clk 0:02:58.4]} 11... Nxe5 {[%clk 0:02:51.1]} 12. Bxe5 {[%clk 0:02:59.3]}
12... Qd7 {[%clk 0:02:46.3]} 13. Qb3 {[%clk 0:02:42.3]} 13... b6 {[%clk
0:02:37.3]} 14. Bxa8 {[%clk 0:02:38.8]} 14... Rxa8 {[%clk 0:02:38.2]} 15. Bxf6
{[%clk 0:02:34.5]} 15... Bxf6 {[%clk 0:02:37.3]} 16. Nd2 {[%clk 0:02:34.8]}
16... g6 {[%clk 0:01:57.7]} 17. Ne4 {[%clk 0:02:26.9]} 17... Bg7 {[%clk
0:01:56]} 18. a4 {[%clk 0:02:23.8]} 18... h5 {[%clk 0:01:53.2]} 19. a5 {[%clk
0:02:00.1]} 19... Re8 {[%clk 0:01:31.3]} 20. axb6 {[%clk 0:01:52.1]} 20... axb6
{[%clk 0:01:32.2]} 21. Qxb6 {[%clk 0:01:51]} 21... h4 {[%clk 0:01:22.5]} 22.
Nxc5 {[%clk 0:01:46.9]} 22... Rxe1+ {[%clk 0:01:22.7]} 23. Rxe1 {[%clk
0:01:46.4]} 23... Qc8 {[%clk 0:01:23.6]} 24. Ne4 {[%clk 0:01:31]} 24... hxg3
{[%clk 0:01:21.1]} 25. hxg3 {[%clk 0:01:31.9]} 25... Be6 {[%clk 0:00:35.5]} 26.
c5 {[%clk 0:01:09.6]} 26... f5 {[%clk 0:00:27.4]} 27. Ng5 {[%clk 0:01:04.3]}
27... Bd5 {[%clk 0:00:27.9]} 28. Qxg6 {[%clk 0:01:02.7]} 28... Qxc5 {[%clk
0:00:13.3]} 29. Re8+ {[%clk 0:01:01.6]} 29... Qf8 {[%clk 0:00:13.9]} 30. Qh7#
{[%clk 0:01:00.7]} 1-0

[Event "Late-Titled-Tuesday-Blitz-May-07-2024"]
[Site "Chess.com"]
[Date "2024.05.07"]
[Round "3"]
[White "MuhittinBuker"]
[Black "Akhayan"]
[Result "1/2-1/2"]
[WhiteElo "2207"]
[BlackElo "2422"]
[TimeControl "180+1"]
[EndTime "14:27:10 PDT"]
[Termination "Game drawn by repetition"]

1. d4 {[%clk 0:02:58.4]} 1... Nf6 {[%clk 0:02:59.2]} 2. c4 {[%clk 0:02:57.1]}
2... g6 {[%clk 0:02:59.7]} 3. Nc3 {[%clk 0:02:56.7]} 3... d5 {[%clk 0:02:59.9]}
4. cxd5 {[%clk 0:02:56.6]} 4... Nxd5 {[%clk 0:02:59.6]} 5. e4 {[%clk 0:02:56.8]}
5... Nxc3 {[%clk 0:02:59.7]} 6. bxc3 {[%clk 0:02:57.7]} 6... Bg7 {[%clk
0:02:59.8]} 7. Nf3 {[%clk 0:02:58.1]} 7... c5 {[%clk 0:02:59]} 8. Bb5+ {[%clk
0:02:57.2]} 8... Nc6 {[%clk 0:02:56.8]} 9. O-O {[%clk 0:02:55.9]} 9... O-O
{[%clk 0:02:55.3]} 10. Bxc6 {[%clk 0:02:55.3]} 10... bxc6 {[%clk 0:02:54.9]} 11.
Be3 {[%clk 0:02:55.7]} 11... cxd4 {[%clk 0:02:49.6]} 12. cxd4 {[%clk 0:02:54.8]}
12... c5 {[%clk 0:02:48.5]} 13. d5 {[%clk 0:02:49.8]} 13... Bxa1 {[%clk
0:02:46.3]} 14. Qxa1 {[%clk 0:02:49.2]} 14... Ba6 {[%clk 0:02:29.5]} 15. Rc1
{[%clk 0:02:42.2]} 15... f5 {[%clk 0:02:23]} 16. Ng5 {[%clk 0:02:35.6]} 16...
Qd6 {[%clk 0:01:33]} 17. Ne6 {[%clk 0:02:24.8]} 17... Rf7 {[%clk 0:01:26.2]} 18.
Bxc5 {[%clk 0:02:25]} 18... Qd7 {[%clk 0:01:18.7]} 19. Qe5 {[%clk 0:02:15.9]}
19... Rc8 {[%clk 0:01:14]} 20. Rb1 {[%clk 0:02:14]} 20... Bd3 {[%clk 0:01:08.7]}
21. Bd4 {[%clk 0:02:13.1]} 21... Rf6 {[%clk 0:01:03.8]} 22. Rb8 {[%clk
0:02:06.2]} 22... Bxe4 {[%clk 0:00:56.4]} 23. f3 {[%clk 0:02:00.7]} 23... Bxd5
{[%clk 0:00:46.4]} 24. Rxc8+ {[%clk 0:01:56.5]} 24... Qxc8 {[%clk 0:00:46.6]}
25. Nf4 {[%clk 0:01:42.6]} 25... Qc1+ {[%clk 0:00:43.1]} 26. Kf2 {[%clk
0:01:41.9]} 26... Qd2+ {[%clk 0:00:35.4]} 27. Kg3 {[%clk 0:01:39.1]} 27... Bf7
{[%clk 0:00:25]} 28. Qb8+ {[%clk 0:01:37.2]} 28... Kg7 {[%clk 0:00:25.2]} 29.
Bxf6+ {[%clk 0:01:32.4]} 29... exf6 {[%clk 0:00:20.3]} 30. Qxa7 {[%clk 0:01:31]}
30... g5 {[%clk 0:00:18.8]} 31. Ne6+ {[%clk 0:01:22]} 31... Kg6 {[%clk
0:00:19.2]} 32. Nf8+ {[%clk 0:01:16.1]} 32... Kg7 {[%clk 0:00:18.6]} 33. Ne6+
{[%clk 0:01:16]} 33... Kg6 {[%clk 0:00:16.9]} 34. Nf8+ {[%clk 0:01:11.2]} 34...
Kg7 {[%clk 0:00:15.1]} 35. Ne6+ {[%clk 0:01:10.3]} 1/2-1/2

[Event "Late-Titled-Tuesday-Blitz-May-07-2024"]
[Site "Chess.com"]
[Date "2024.05.07"]
[Round "3"]
[White "protectiago"]
[Black "Onthequiet"]
[Result "0-1"]
[WhiteElo "2050"]
[BlackElo "2389"]
[TimeControl "180+1"]
[EndTime "14:27:10 PDT"]
[Termination "Onthequiet won by resignation"]

1. d4 {[%clk 0:03:00.9]} 1... b6 {[%clk 0:02:56.5]} 2. Nf3 {[%clk 0:02:58.3]}
2... Bb7 {[%clk 0:02:57]} 3. Nbd2 {[%clk 0:02:56.6]} 3... g6 {[%clk 0:02:56.8]}
4. e4 {[%clk 0:02:56.6]} 4... Bg7 {[%clk 0:02:57.2]} 5. Bd3 {[%clk 0:02:56.4]}
5... e6 {[%clk 0:02:55.2]} 6. O-O {[%clk 0:02:56]} 6... Ne7 {[%clk 0:02:55.1]}
7. c3 {[%clk 0:02:47.7]} 7... d6 {[%clk 0:02:55.4]} 8. Re1 {[%clk 0:02:31.7]}
8... Nd7 {[%clk 0:02:54.6]} 9. e5 {[%clk 0:02:26.5]} 9... O-O {[%clk 0:02:51.5]}
10. exd6 {[%clk 0:02:25.3]} 10... cxd6 {[%clk 0:02:51]} 11. Nf1 {[%clk
0:02:22.7]} 11... h6 {[%clk 0:02:44.6]} 12. Ng3 {[%clk 0:02:15.3]} 12... Nf6
{[%clk 0:02:43.6]} 13. Ne4 {[%clk 0:02:11.7]} 13... Nf5 {[%clk 0:02:41.5]} 14.
Nxf6+ {[%clk 0:02:09.1]} 14... Qxf6 {[%clk 0:02:40.8]} 15. Be4 {[%clk
0:01:56.4]} 15... Bxe4 {[%clk 0:02:22.6]} 16. Rxe4 {[%clk 0:01:55.7]} 16... b5
{[%clk 0:02:16.8]} 17. Qe2 {[%clk 0:01:52.8]} 17... Rab8 {[%clk 0:01:56.6]} 18.
g4 {[%clk 0:01:52.2]} 18... Nh4 {[%clk 0:01:52.2]} 19. Nxh4 {[%clk 0:01:42.9]}
19... Qxh4 {[%clk 0:01:53.1]} 20. g5 {[%clk 0:01:40.3]} 20... Qh3 {[%clk
0:01:50]} 21. Bf4 {[%clk 0:01:25.1]} 21... Rb6 {[%clk 0:01:38.6]} 22. gxh6
{[%clk 0:01:17.7]} 22... Bxh6 {[%clk 0:01:38.3]} 23. Bg3 {[%clk 0:01:17.8]}
23... Qf5 {[%clk 0:01:17]} 24. a3 {[%clk 0:01:08.4]} 24... Rc8 {[%clk
0:01:15.3]} 25. Re1 {[%clk 0:00:59.2]} 25... a5 {[%clk 0:01:12.9]} 26. Qf1
{[%clk 0:00:36.2]} 26... b4 {[%clk 0:01:07.6]} 27. cxb4 {[%clk 0:00:24.7]} 27...
axb4 {[%clk 0:01:07]} 28. a4 {[%clk 0:00:24.5]} 28... b3 {[%clk 0:01:01.3]} 29.
Qh3 {[%clk 0:00:14.3]} 29... Qxh3 {[%clk 0:00:59.8]} 0-1